bitfinex/quotes_BTCUSD_20230907
["timestamp","ask_amount","ask_price","bid_price","bid_amount"]
[1694105987267,4.10761649,25848.0,25847.0,0.011099]
[1694105987448,4.10839649,25848.0,25847.0,0.011099]
[1694105987663,4.10431649,25848.0,25847.0,0.011099]
[1694105987863,4.10107649,25848.0,25847.0,0.011099]
[1694105988276,4.10281649,25848.0,25847.0,0.011099]
[1694105988478,3.10866264,25848.0,25847.0,0.011099]
[1694105988691,0.93507772,25848.0,25847.0,0.011099]
[1694105988897,1.70883172,25848.0,25847.0,0.011099]
[1694105989305,2.48258572,25848.0,25847.0,0.011099]
[1694105991164,3.25633972,25848.0,25847.0,0.011099]
[1694105991338,3.71705264,25848.0,25847.0,0.011099]
[1694105991549,3.71771264,25848.0,25847.0,0.011099]
[1694105991711,3.71795264,25848.0,25847.0,0.011099]
[1694105992121,3.71789264,25848.0,25847.0,0.011099]
[1694105992531,3.71771264,25848.0,25847.0,0.011099]
[1694105992785,3.71795264,25848.0,25847.0,0.011099]
[1694105993139,3.71801264,25848.0,25847.0,0.011099]
[1694105993343,3.89986395,25848.0,25847.0,0.011099]
[1694105993545,3.78364395,25848.0,25847.0,0.011099]
[1694105993755,3.78382395,25848.0,25847.0,0.011099]
[1694105993955,3.78532395,25848.0,25847.0,0.011099]
[1694105994205,3.78730395,25848.0,25847.0,0.011099]
[1694105994523,3.78490395,25848.0,25847.0,0.011099]
[1694105994732,3.78478395,25848.0,25847.0,0.011099]
[1694105994935,3.78508395,25848.0,25847.0,0.011099]
[1694105995140,3.78760395,25848.0,25847.0,0.011099]
[1694105995352,3.78730395,25848.0,25847.0,0.011099]
[1694105995551,3.78706395,25848.0,25847.0,0.011099]
[1694105995795,3.39481103,25848.0,25847.0,0.011099]
[1694105996003,0.65632232,25848.0,25847.0,0.15405159]
[1694105996417,0.65632232,25848.0,25847.0,0.03435159]
[1694105997644,1.43007632,25848.0,25847.0,0.03435159]
[1694105997849,2.20383032,25848.0,25847.0,0.03435159]
[1694105998267,2.97758432,25848.0,25847.0,0.03435159]
[1694105998490,3.43541724,25848.0,25847.0,0.03435159]
[1694105998699,3.43379724,25848.0,25847.0,0.03435159]
[1694105999068,3.43295724,25848.0,25847.0,0.03435159]
[1694105999287,3.43271724,25848.0,25847.0,0.03435159]
[1694105999493,3.43649724,25848.0,25847.0,0.03435159]
[1694105999751,3.43763724,25848.0,25847.0,0.03435159]
[1694105999964,3.43721724,25848.0,25847.0,0.03221392]
[1694106000218,2.92983243,25848.0,25847.0,0.03221392]
[1694106000465,2.92983243,25848.0,25847.0,0.03435159]
[1694106000466,3.21912659,25848.0,25847.0,0.03435159]
[1694106000668,3.21492659,25848.0,25847.0,0.03221392]
[1694106000878,3.21570659,25848.0,25847.0,0.03435159]
[1694106001118,3.21480659,25848.0,25847.0,0.03221392]
[1694106001317,3.21264659,25848.0,25847.0,0.03221392]
[1694106001526,3.21624659,25848.0,25847.0,0.03221392]
[1694106001702,3.21702659,25848.0,25847.0,0.03221392]
[1694106001907,3.21930659,25848.0,25847.0,0.011099]
[1694106002116,3.21762659,25848.0,25847.0,0.03221392]
[1694106002314,3.21582659,25848.0,25847.0,0.03221392]
[1694106002587,3.22170659,25848.0,25847.0,0.03221392]
[1694106002791,3.21756659,25848.0,25847.0,0.03221392]
[1694106003000,3.22056659,25848.0,25847.0,0.03221392]
[1694106003182,3.22032659,25848.0,25847.0,0.03221392]
[1694106003372,3.22008659,25848.0,25847.0,0.03221392]
[1694106003550,3.21750659,25848.0,25847.0,0.03221392]
[1694106003751,3.21606659,25848.0,25847.0,0.03221392]
[1694106003954,2.35963259,25848.0,25847.0,0.03221392]
[1694106004188,2.08089843,25848.0,25847.0,0.03221392]
[1694106007186,2.08089843,25848.0,25847.0,0.03435159]
[1694106007443,1.30714443,25848.0,25847.0,0.03435159]
[1694106007864,2.08089843,25848.0,25847.0,0.03435159]
[1694106008989,2.14929843,25848.0,25847.0,0.03435159]
[1694106009205,2.92881243,25848.0,25847.0,0.03435159]
[1694106009413,2.92647243,25848.0,25847.0,0.03435159]
[1694106009626,2.92611243,25848.0,25847.0,0.03435159]
[1694106009841,2.92389243,25848.0,25847.0,0.03435159]
[1694106010051,2.92737243,25848.0,25847.0,0.03435159]
[1694106010267,2.93169243,25848.0,25847.0,0.03221392]
[1694106010484,2.92893243,25848.0,25847.0,0.03435159]
[1694106010697,2.92791243,25848.0,25847.0,0.03435159]
[1694106010895,2.92665243,25848.0,25847.0,0.03435159]
[1694106011104,0.53339043,25848.0,25847.0,0.03435159]
[1694106014583,0.52281757,25848.0,25847.0,0.03435159]
[1694106016608,0.63453733,25848.0,25847.0,0.03435159]
[1694106018476,0.24598411,25848.0,25847.0,0.03435159]
[1694106034295,0.47824516,25848.0,25847.0,0.03435159]
[1694106035348,0.24598411,25848.0,25847.0,0.03435159]
[1694106035996,0.47822849,25848.0,25847.0,0.03435159]
[1694106038928,0.24598411,25848.0,25847.0,0.03435159]
[1694106039104,0.47806628,25848.0,25847.0,0.03435159]
[1694106042023,0.47806628,25848.0,25847.0,0.03315959]
[1694106056818,2.18190533,25848.0,25847.0,0.03315959]
[1694106057034,3.54765225,25848.0,25847.0,0.03315959]
[1694106057253,3.15227933,25848.0,25847.0,0.03315959]
[1694106057475,3.02909933,25848.0,25847.0,0.03315959]
[1694106057678,3.02903933,25848.0,25847.0,0.03315959]
[1694106057947,3.02909933,25848.0,25847.0,0.03315959]
[1694106058155,3.02555933,25848.0,25847.0,0.03102192]
[1694106058371,3.02555933,25848.0,25847.0,0.03315959]
[1694106058372,3.02771933,25848.0,25847.0,0.03315959]
[1694106058586,3.02579933,25848.0,25847.0,0.03315959]
[1694106058782,3.02513933,25848.0,25847.0,0.03315959]
[1694106059031,3.02477933,25848.0,25847.0,0.03315959]
[1694106059287,3.02405933,25848.0,25847.0,0.03315959]
[1694106059497,3.02411933,25848.0,25847.0,0.03315959]
[1694106059726,3.02435933,25848.0,25847.0,0.03315959]
[1694106059979,3.02891933,25848.0,25847.0,0.03315959]
[1694106060190,3.02849933,25848.0,25847.0,0.03315959]
[1694106060439,3.02855933,25848.0,25847.0,0.03315959]
[1694106060680,2.18190533,25848.0,25847.0,0.03315959]
[1694106060951,0.24584411,25848.0,25847.0,0.03315959]
[1694106064383,3.44009096,25848.0,25844.0,0.019998]
[1694106064597,0.39843443,25846.0,25844.0,0.019998]
[1694106064805,2.96010711,25845.0,25844.0,0.019998]
[1694106065030,3.34398615,25845.0,25844.0,0.019998]
[1694106065246,4.11579015,25845.0,25844.0,0.019998]
[1694106065464,4.12023015,25845.0,25844.0,0.019998]
[1694106065665,3.83471572,25845.0,25844.0,0.019998]
[1694106065897,3.83339572,25845.0,25844.0,0.019998]
[1694106066121,2.34168772,25845.0,25844.0,0.019998]
[1694106066297,2.26140772,25845.0,25844.0,0.019998]
[1694106066547,0.71371972,25845.0,25844.0,0.021998]
[1694106067182,0.71371972,25845.0,25844.0,0.019998]
[1694106067183,1.71968278,25845.0,25844.0,0.019998]
[1694106067386,1.48756372,25845.0,25844.0,0.019998]
[1694106067651,1.48956372,25845.0,25844.0,0.021998]
[1694106067853,1.72365757,25845.0,25844.0,0.022998]
[1694106068007,2.49750157,25845.0,25844.0,0.022998]
[1694106068640,0.94981357,25845.0,25844.0,0.022998]
[1694106069287,1.72365757,25845.0,25844.0,0.022998]
[1694106070326,0.94981357,25845.0,25844.0,0.022998]
[1694106071976,1.13542077,25845.0,25844.0,0.022998]
[1694106072588,0.90332692,25845.0,25844.0,0.022998]
[1694106074061,0.62988678,25845.0,25844.0,0.022998]
[1694106074307,0.16133356,25845.0,25844.0,0.14483567]
[1694106074537,0.11493466,25845.0,25844.0,0.14483567]
[1694106074745,0.16133356,25845.0,25844.0,0.14483567]
[1694106075207,0.16133356,25845.0,25844.0,0.02513567]
[1694106076693,0.25411757,25845.0,25844.0,0.02513567]
[1694106076914,0.11492862,25845.0,25844.0,0.02513567]
[1694106080648,2.28318198,25845.0,25844.0,0.02513567]
[1694106080849,2.14399303,25845.0,25844.0,0.02513567]
[1694106081993,2.98737703,25845.0,25844.0,0.02513567]
[1694106082222,3.37626995,25845.0,25844.0,0.02513567]
[1694106082464,3.37530995,25845.0,25844.0,0.02513567]
[1694106082699,2.98503703,25845.0,25844.0,0.02513567]
[1694106082926,2.98533703,25845.0,25844.0,0.02513567]
[1694106083139,2.98503703,25845.0,25844.0,0.02513567]
[1694106083354,2.21101303,25845.0,25844.0,0.02513567]
[1694106083576,2.21215303,25845.0,25844.0,0.02513567]
[1694106083773,2.21155303,25845.0,25844.0,0.02513567]
[1694106083974,2.21029303,25845.0,25844.0,0.02513567]
[1694106084227,2.21011303,25845.0,25844.0,0.02513567]
[1694106084490,2.43449883,25845.0,25844.0,0.02513567]
[1694106084705,2.43455883,25845.0,25844.0,0.02513567]
[1694106084872,2.36933883,25845.0,25844.0,0.02513567]
[1694106089587,1.59549483,25845.0,25844.0,0.02513567]
[1694106095306,4.55772274,25845.0,25844.0,0.022998]
[1694106095552,4.73441274,25845.0,25844.0,0.022998]
[1694106095806,4.72625274,25845.0,25844.0,0.022998]
[1694106096046,4.72373274,25845.0,25844.0,0.022998]
[1694106096298,4.72373274,25845.0,25844.0,0.019998]
[1694106096299,4.75835507,25845.0,25844.0,0.019998]
[1694106096539,5.04183507,25845.0,25844.0,0.019998]
[1694106096772,4.5167054,25845.0,25844.0,0.019998]
[1694106097009,4.39882854,25845.0,25844.0,0.019998]
[1694106097248,4.56528854,25845.0,25844.0,0.019998]
[1694106097543,4.70104828,25845.0,25844.0,0.019998]
[1694106097760,5.0693012,25845.0,25844.0,0.019998]
[1694106097999,4.73153159,25845.0,25844.0,0.019998]
[1694106098233,4.51962064,25845.0,25844.0,0.019998]
[1694106098481,4.3998517,25845.0,25844.0,0.019998]
[1694106098717,4.4035117,25845.0,25844.0,0.019998]
[1694106098945,4.4038717,25845.0,25844.0,0.019998]
[1694106099175,4.4035717,25845.0,25844.0,0.019998]
[1694106099385,4.4036317,25845.0,25844.0,0.019998]
[1694106099866,4.4019517,25845.0,25844.0,0.019998]
[1694106100091,4.4004517,25845.0,25844.0,0.019998]
[1694106100308,4.79324462,25845.0,25844.0,0.019998]
[1694106100573,5.11199615,25845.0,25844.0,0.019998]
[1694106100785,4.80003817,25845.0,25844.0,0.019998]
[1694106101013,4.80183817,25845.0,25844.0,0.019998]
[1694106101242,4.80591817,25845.0,25844.0,0.019998]
[1694106101514,4.80525817,25845.0,25844.0,0.019998]
[1694106101771,4.80573817,25845.0,25844.0,0.019998]
[1694106102007,4.80453817,25845.0,25844.0,0.019998]
[1694106102251,4.80405817,25845.0,25844.0,0.019998]
[1694106102480,4.96671817,25845.0,25844.0,0.019998]
[1694106102723,4.96683817,25845.0,25844.0,0.019998]
[1694106102942,5.10611763,25845.0,25844.0,0.019998]
[1694106103159,5.25923535,25845.0,25844.0,0.019998]
[1694106103369,5.23439535,25845.0,25844.0,0.019998]
[1694106103574,5.23247535,25845.0,25844.0,0.019998]
[1694106103789,5.23259535,25845.0,25844.0,0.019998]
[1694106103990,5.22419535,25845.0,25844.0,0.019998]
[1694106104197,5.22431535,25845.0,25844.0,0.019998]
[1694106104412,5.22407535,25845.0,25844.0,0.019998]
[1694106104622,5.22347535,25845.0,25844.0,0.019998]
[1694106104831,5.22011535,25845.0,25844.0,0.019998]
[1694106105036,5.04162535,25845.0,25844.0,0.019998]
[1694106105258,5.04078535,25845.0,25844.0,0.019998]
[1694106105471,5.24111535,25845.0,25844.0,0.019998]
[1694106105682,5.17307972,25845.0,25844.0,0.019998]
[1694106105901,5.24537671,25845.0,25844.0,0.019998]
[1694106106138,5.22545671,25845.0,25844.0,0.019998]
[1694106106351,5.22845671,25845.0,25844.0,0.019998]
[1694106106600,5.24941915,25845.0,25844.0,0.019998]
[1694106106811,5.25001915,25845.0,25844.0,0.019998]
[1694106107015,5.26309915,25845.0,25844.0,0.019998]
[1694106107163,5.25865915,25845.0,25844.0,0.019998]
[1694106107362,5.26177915,25845.0,25844.0,0.019998]
[1694106107587,5.19260216,25845.0,25844.0,0.019998]
[1694106107794,5.19200216,25845.0,25844.0,0.019998]
[1694106108002,5.19728216,25845.0,25844.0,0.019998]
[1694106108207,5.20196216,25845.0,25844.0,0.019998]
[1694106108407,5.19740216,25845.0,25844.0,0.019998]
[1694106108618,5.19092216,25845.0,25844.0,0.019998]
[1694106108899,5.21132216,25845.0,25844.0,0.019998]
[1694106109046,5.20580216,25845.0,25844.0,0.019998]
[1694106109244,5.20160216,25845.0,25844.0,0.019998]
[1694106109461,5.20100216,25845.0,25844.0,0.019998]
[1694106109674,5.14964216,25845.0,25844.0,0.019998]
[1694106109876,5.15048216,25845.0,25844.0,0.019998]
[1694106110082,5.15672216,25845.0,25844.0,0.019998]
[1694106110277,5.15744216,25845.0,25844.0,0.019998]
[1694106110493,5.20100216,25845.0,25844.0,0.019998]
[1694106110691,5.19368216,25845.0,25844.0,0.019998]
[1694106110919,5.19224216,25845.0,25844.0,0.019998]
[1694106111126,5.22584216,25845.0,25844.0,0.019998]
[1694106111320,5.21348216,25845.0,25844.0,0.019998]
[1694106111592,5.22092216,25845.0,25844.0,0.019998]
[1694106111800,5.21648216,25845.0,25844.0,0.019998]
[1694106112006,5.21612216,25845.0,25844.0,0.019998]
[1694106112215,5.21540216,25845.0,25844.0,0.019998]
[1694106112418,5.22092216,25845.0,25844.0,0.019998]
[1694106112635,5.22116216,25845.0,25844.0,0.019998]
[1694106112837,5.22080216,25845.0,25844.0,0.019998]
[1694106113050,5.20860216,25845.0,25844.0,0.019998]
[1694106113175,5.20452216,25845.0,25844.0,0.019998]
[1694106113395,5.19728216,25845.0,25844.0,0.019998]
[1694106113609,5.23124216,25845.0,25844.0,0.019998]
[1694106113819,5.33030976,25845.0,25844.0,0.019998]
[1694106114036,5.32146976,25845.0,25844.0,0.019998]
[1694106114233,5.32206976,25845.0,25844.0,0.019998]
[1694106114465,5.29890976,25845.0,25844.0,0.019998]
[1694106114671,5.6358072,25845.0,25844.0,0.019998]
[1694106114834,5.6372472,25845.0,25844.0,0.019998]
[1694106115082,5.6390472,25845.0,25844.0,0.019998]
[1694106115309,5.6354472,25845.0,25844.0,0.019998]
[1694106115483,5.6349672,25845.0,25844.0,0.019998]
[1694106115678,5.6563272,25845.0,25844.0,0.019998]
[1694106115882,5.6569272,25845.0,25844.0,0.019998]
[1694106116088,5.6562072,25845.0,25844.0,0.019998]
[1694106116295,5.5957272,25845.0,25844.0,0.019998]
[1694106116593,5.5941672,25845.0,25844.0,0.019998]
[1694106116787,5.5862472,25845.0,25844.0,0.019998]
[1694106117371,4.30125494,25845.0,25844.0,0.019998]
[1694106117587,0.97797653,25845.0,25844.0,0.019998]
[1694106117794,0.97797653,25845.0,25844.0,0.17541929]
[1694106117795,0.67797653,25845.0,25844.0,0.17541929]
[1694106118000,0.86334561,25845.0,25844.0,0.02213567]
[1694106118209,1.09506464,25845.0,25844.0,0.02213567]
[1694106118622,0.86160577,25845.0,25844.0,0.02213567]
[1694106118827,0.59206691,25845.0,25844.0,0.02213567]
[1694106119240,0.74709426,25845.0,25844.0,0.02213567]
[1694106119465,0.73109426,25845.0,25844.0,0.02213567]
[1694106119885,0.73809426,25845.0,25844.0,0.02313567]
[1694106120086,0.76209426,25845.0,25844.0,0.020998]
[1694106120289,0.76209426,25845.0,25844.0,0.02313567]
[1694106120924,0.57672518,25845.0,25844.0,0.02313567]
[1694106121126,0.55272518,25845.0,25844.0,0.02313567]
[1694106121497,0.55772518,25845.0,25844.0,0.02313567]
[1694106122697,0.55772518,25845.0,25844.0,0.02426998]
[1694106123592,0.74309426,25845.0,25844.0,0.02426998]
[1694106125458,1.92799067,25845.0,25844.0,0.02426998]
[1694106125705,2.35698656,25845.0,25844.0,0.0217542]
[1694106125938,2.58998795,25845.0,25844.0,0.02389187]
[1694106126182,2.48764662,25845.0,25844.0,0.02389187]
[1694106126667,2.48752662,25845.0,25844.0,0.02389187]
[1694106127131,2.48686662,25845.0,25844.0,0.02389187]
[1694106127366,2.48794662,25845.0,25844.0,0.02389187]
[1694106127599,2.48770662,25845.0,25844.0,0.02389187]
[1694106127889,2.48734662,25845.0,25844.0,0.02389187]
[1694106128133,2.48710662,25845.0,25844.0,0.02389187]
[1694106128380,2.48698662,25845.0,25844.0,0.02389187]
[1694106128623,2.48692662,25845.0,25844.0,0.02389187]
[1694106128858,2.48536662,25845.0,25844.0,0.02389187]
[1694106129121,2.48524662,25845.0,25844.0,0.02389187]
[1694106129333,2.48566662,25845.0,25844.0,0.02389187]
[1694106129559,2.41906662,25845.0,25844.0,0.02389187]
[1694106130287,2.51748662,25845.0,25844.0,0.02389187]
[1694106130509,2.51688662,25845.0,25844.0,0.02389187]
[1694106130726,2.51520662,25845.0,25844.0,0.02389187]
[1694106130945,2.50914662,25845.0,25844.0,0.02389187]
[1694106131161,2.44206662,25845.0,25844.0,0.02389187]
[1694106131865,2.50752662,25845.0,25844.0,0.02389187]
[1694106132130,2.50728662,25845.0,25844.0,0.02389187]
[1694106132355,2.50758662,25845.0,25844.0,0.02389187]
[1694106132576,2.50752662,25845.0,25844.0,0.02389187]
[1694106132797,2.62704662,25845.0,25844.0,0.02389187]
[1694106133023,2.56176662,25845.0,25844.0,0.02389187]
[1694106133702,2.62704662,25845.0,25844.0,0.02389187]
[1694106133919,2.62926662,25845.0,25844.0,0.02389187]
[1694106134153,2.62920662,25845.0,25844.0,0.02389187]
[1694106134416,2.62944662,25845.0,25844.0,0.02389187]
[1694106134692,2.39812523,25845.0,25844.0,0.02389187]
[1694106134969,2.39764523,25845.0,25844.0,0.02389187]
[1694106135271,2.39764523,25845.0,25844.0,0.0217542]
[1694106135272,3.94262428,25845.0,25844.0,0.0217542]
[1694106135493,3.80114428,25845.0,25844.0,0.0217542]
[1694106135721,3.79166428,25845.0,25844.0,0.020998]
[1694106135962,3.78962428,25845.0,25844.0,0.020998]
[1694106136206,3.78890428,25845.0,25844.0,0.020998]
[1694106136406,3.78662428,25845.0,25844.0,0.020998]
[1694106136652,3.77588428,25845.0,25844.0,0.020998]
[1694106136881,3.47950739,25845.0,25844.0,0.020998]
[1694106137103,3.46234739,25845.0,25844.0,0.020998]
[1694106137325,3.46114739,25845.0,25844.0,0.020998]
[1694106137547,3.46126739,25845.0,25844.0,0.020998]
[1694106137766,3.46864739,25845.0,25844.0,0.02175633]
[1694106137958,3.85574031,25845.0,25844.0,0.02175633]
[1694106138192,3.85580031,25845.0,25844.0,0.02175633]
[1694106138401,3.85496031,25845.0,25844.0,0.02175633]
[1694106138611,3.85466031,25845.0,25844.0,0.02175633]
[1694106138829,3.85568031,25845.0,25844.0,0.02175633]
[1694106139053,3.85868031,25845.0,25844.0,0.02175633]
[1694106139566,3.85184031,25845.0,25844.0,0.02175633]
[1694106139774,3.85142031,25845.0,25844.0,0.02175633]
[1694106140001,3.85160031,25845.0,25844.0,0.02175633]
[1694106140279,3.85184031,25845.0,25844.0,0.02175633]
[1694106140495,3.85190031,25845.0,25844.0,0.02175633]
[1694106140724,3.85226031,25845.0,25844.0,0.02175633]
[1694106140941,1.43642123,25845.0,25844.0,0.02175633]
[1694106141155,2.32996523,25845.0,25844.0,0.02175633]
[1694106141369,3.19638923,25845.0,25844.0,0.02175633]
[1694106141586,3.19668923,25845.0,25844.0,0.02175633]
[1694106141800,3.58786215,25845.0,25844.0,0.02175633]
[1694106142009,3.58666215,25845.0,25844.0,0.02175633]
[1694106142221,3.58672215,25845.0,25844.0,0.02175633]
[1694106142436,3.88334031,25845.0,25844.0,0.02175633]
[1694106142659,3.92778581,25845.0,25844.0,0.02175633]
[1694106142905,3.93138581,25845.0,25844.0,0.02175633]
[1694106143134,3.93120581,25845.0,25844.0,0.02175633]
[1694106143353,4.48520581,25845.0,25844.0,0.02175633]
[1694106143581,4.47752581,25845.0,25844.0,0.02175633]
[1694106143792,4.48388581,25845.0,25844.0,0.020998]
[1694106144007,4.49756581,25845.0,25844.0,0.020998]
[1694106144231,4.50008581,25845.0,25844.0,0.020998]
[1694106144466,4.11323289,25845.0,25844.0,0.020998]
[1694106144681,4.10039289,25845.0,25844.0,0.020998]
[1694106144861,4.09895289,25845.0,25844.0,0.020998]
[1694106145063,4.09343289,25845.0,25844.0,0.020998]
[1694106145193,4.09259289,25845.0,25844.0,0.020998]
[1694106145619,4.49768581,25845.0,25844.0,0.020998]
[1694106145829,4.24550039,25845.0,25844.0,0.020998]
[1694106146035,4.54886039,25845.0,25844.0,0.020998]
[1694106146235,4.55246039,25845.0,25844.0,0.020998]
[1694106146479,4.55198039,25845.0,25844.0,0.020998]
[1694106146692,4.92463783,25845.0,25844.0,0.020998]
[1694106146886,5.28773075,25845.0,25844.0,0.020998]
[1694106147135,5.27213075,25845.0,25844.0,0.020998]
[1694106147360,5.27501075,25845.0,25844.0,0.020998]
[1694106147512,5.27273075,25845.0,25844.0,0.020998]
[1694106147719,5.27285075,25845.0,25844.0,0.020998]
[1694106147935,5.27325075,25845.0,25844.0,0.020998]
[1694106148131,5.30409075,25845.0,25844.0,0.020998]
[1694106148330,5.29005075,25845.0,25844.0,0.020998]
[1694106148555,5.28633075,25845.0,25844.0,0.020998]
[1694106148754,5.28645075,25845.0,25844.0,0.020998]
[1694106149105,5.25593075,25845.0,25844.0,0.019998]
[1694106149314,5.34725075,25845.0,25844.0,0.019998]
[1694106149536,5.34929075,25845.0,25844.0,0.019998]
[1694106149741,5.35277075,25845.0,25844.0,0.019998]
[1694106149946,5.34797075,25845.0,25844.0,0.019998]
[1694106150156,5.32709075,25845.0,25844.0,0.019998]
[1694106150365,5.32133075,25845.0,25844.0,0.019998]
[1694106150783,5.30825075,25845.0,25844.0,0.019998]
[1694106150992,5.30897075,25845.0,25844.0,0.019998]
[1694106151198,5.30885075,25845.0,25844.0,0.019998]
[1694106151404,5.30909075,25845.0,25844.0,0.019998]
[1694106151609,5.30717075,25845.0,25844.0,0.019998]
[1694106151819,5.30741075,25845.0,25844.0,0.019998]
[1694106152234,5.30753075,25845.0,25844.0,0.019998]
[1694106152438,5.30741075,25845.0,25844.0,0.019998]
[1694106152641,5.30105075,25845.0,25844.0,0.019998]
[1694106152823,5.30153075,25845.0,25844.0,0.019998]
[1694106153035,4.90783783,25845.0,25844.0,0.019998]
[1694106153304,4.89727783,25845.0,25844.0,0.019998]
[1694106153513,4.90543783,25845.0,25844.0,0.019998]
[1694106153747,4.90471783,25845.0,25844.0,0.019998]
[1694106153971,5.29373075,25845.0,25844.0,0.019998]
[1694106154208,5.30465075,25845.0,25844.0,0.019998]
[1694106154437,5.30513075,25845.0,25844.0,0.019998]
[1694106154722,5.30657075,25845.0,25844.0,0.019998]
[1694106154943,5.30849075,25845.0,25844.0,0.019998]
[1694106155174,5.29421075,25845.0,25844.0,0.019998]
[1694106155438,5.29457075,25845.0,25844.0,0.019998]
[1694106155683,5.30185582,25845.0,25844.0,0.019998]
[1694106155931,5.30245582,25845.0,25844.0,0.019998]
[1694106156167,5.30209582,25845.0,25844.0,0.019998]
[1694106156405,5.30221582,25845.0,25844.0,0.019998]
[1694106156635,5.30113582,25845.0,25844.0,0.019998]
[1694106156872,4.9007229,25845.0,25844.0,0.019998]
[1694106157119,4.9408029,25845.0,25844.0,0.019998]
[1694106157392,6.11362636,25845.0,25844.0,0.019998]
[1694106157633,5.78896892,25845.0,25844.0,0.019998]
[1694106157871,5.79040892,25845.0,25844.0,0.019998]
[1694106158079,6.17696184,25845.0,25844.0,0.019998]
[1694106158324,5.62533878,25845.0,25844.0,0.019998]
[1694106158560,6.15795989,25845.0,25844.0,0.019998]
[1694106158801,6.18483989,25845.0,25844.0,0.019998]
[1694106159050,5.94525989,25845.0,25844.0,0.019998]
[1694106159276,5.93997989,25845.0,25844.0,0.019998]
[1694106159509,5.94345989,25845.0,25844.0,0.019998]
[1694106159770,5.94537989,25845.0,25844.0,0.019998]
[1694106159993,5.94141989,25845.0,25844.0,0.019998]
[1694106160224,5.94165989,25845.0,25844.0,0.019998]
[1694106160435,5.94237989,25845.0,25844.0,0.019998]
[1694106160677,5.93205989,25845.0,25844.0,0.019998]
[1694106161174,5.93697989,25845.0,25844.0,0.019998]
[1694106161416,5.96433989,25845.0,25844.0,0.019998]
[1694106161654,6.17079989,25845.0,25844.0,0.019998]
[1694106161918,6.19221989,25845.0,25844.0,0.019998]
[1694106162160,6.19347989,25845.0,25844.0,0.019998]
[1694106162411,6.19617989,25845.0,25844.0,0.019998]
[1694106162651,6.19527989,25845.0,25844.0,0.019998]
[1694106162852,0.56546179,25844.0,25843.0,0.019998]
[1694106163098,4.89224675,25844.0,25843.0,0.019998]
[1694106163338,5.48750675,25844.0,25843.0,0.019998]
[1694106163569,5.49822598,25844.0,25843.0,0.019998]
[1694106163812,5.49858598,25844.0,25843.0,0.019998]
[1694106164063,5.29764598,25844.0,25843.0,0.019998]
[1694106164310,5.27916598,25844.0,25843.0,0.019998]
[1694106164559,5.31864598,25844.0,25843.0,0.019998]
[1694106164831,5.33604598,25844.0,25843.0,0.019998]
[1694106165076,5.33448598,25844.0,25843.0,0.019998]
[1694106165300,5.34540598,25844.0,25843.0,0.019998]
[1694106165557,5.64873639,25844.0,25843.0,0.019998]
[1694106165828,5.64273639,25844.0,25843.0,0.019998]
[1694106166076,5.64237639,25844.0,25843.0,0.019998]
[1694106166271,5.64297639,25844.0,25843.0,0.019998]
[1694106166512,5.64273639,25844.0,25843.0,0.019998]
[1694106166748,5.63517639,25844.0,25843.0,0.019998]
[1694106166980,5.62617639,25844.0,25843.0,0.019998]
[1694106167218,5.62269639,25844.0,25843.0,0.019998]
[1694106167457,5.61501639,25844.0,25843.0,0.019998]
[1694106167683,5.55585639,25844.0,25843.0,0.019998]
[1694106167915,5.55489639,25844.0,25843.0,0.019998]
[1694106168145,5.55873639,25844.0,25843.0,0.019998]
[1694106168397,5.58777639,25844.0,25843.0,0.019998]
[1694106168641,5.58477639,25844.0,25843.0,0.019998]
[1694106168880,5.57805639,25844.0,25843.0,0.019998]
[1694106169079,5.58285639,25844.0,25843.0,0.019998]
[1694106169322,5.58489639,25844.0,25843.0,0.019998]
[1694106169565,5.56801693,25844.0,25843.0,0.019998]
[1694106169769,5.55625693,25844.0,25843.0,0.019998]
[1694106170071,5.55697693,25844.0,25843.0,0.019998]
[1694106170313,5.56393693,25844.0,25843.0,0.019998]
[1694106170858,5.58097693,25844.0,25843.0,0.019998]
[1694106171090,5.65977639,25844.0,25843.0,0.019998]
[1694106171325,3.11395433,25839.0,25838.0,0.174798]
[1694106171588,4.95560347,25839.0,25838.0,0.019998]
[1694106171853,5.09387491,25839.0,25838.0,0.019998]
[1694106172109,5.28640491,25839.0,25838.0,0.019998]
[1694106172350,5.28796491,25839.0,25838.0,0.019998]
[1694106172619,5.00310812,25839.0,25838.0,0.019998]
[1694106172891,5.27140491,25839.0,25838.0,0.019998]
[1694106173103,5.26840491,25839.0,25838.0,0.019998]
[1694106173288,5.72148491,25839.0,25838.0,0.019998]
[1694106173509,5.93504091,25839.0,25838.0,0.019998]
[1694106173676,5.93204091,25839.0,25838.0,0.019998]
[1694106173894,5.93048091,25839.0,25838.0,0.019998]
[1694106174100,5.92916091,25839.0,25838.0,0.019998]
[1694106174429,5.96444091,25839.0,25838.0,0.019998]
[1694106174640,5.96228091,25839.0,25838.0,0.019998]
[1694106174804,5.95556091,25839.0,25838.0,0.019998]
[1694106174954,5.94536091,25839.0,25838.0,0.019998]
[1694106175158,5.94464091,25839.0,25838.0,0.019998]
[1694106175363,5.94428091,25839.0,25838.0,0.019998]
[1694106175665,5.93744091,25839.0,25838.0,0.019998]
[1694106175945,5.92916091,25839.0,25838.0,0.019998]
[1694106176171,5.93588091,25839.0,25838.0,0.019998]
[1694106176404,5.92916091,25839.0,25838.0,0.019998]
[1694106176613,5.96504091,25839.0,25838.0,0.019998]
[1694106176874,5.95904091,25839.0,25838.0,0.019998]
[1694106177123,5.28718869,25839.0,25838.0,0.019998]
[1694106177360,5.11618869,25839.0,25838.0,0.019998]
[1694106177590,5.11840869,25839.0,25838.0,0.019998]
[1694106177775,5.12014869,25839.0,25838.0,0.019998]
[1694106178065,5.51894161,25839.0,25838.0,0.019998]
[1694106178267,5.51846161,25839.0,25838.0,0.019998]
[1694106178518,5.52014161,25839.0,25838.0,0.019998]
[1694106178769,5.52038161,25839.0,25838.0,0.019998]
[1694106179059,5.51978161,25839.0,25838.0,0.019998]
[1694106179309,5.51666161,25839.0,25838.0,0.019998]
[1694106179558,5.51720161,25839.0,25838.0,0.019998]
[1694106179809,5.51480161,25839.0,25838.0,0.019998]
[1694106180049,5.47192161,25839.0,25838.0,0.019998]
[1694106180295,5.51378161,25839.0,25838.0,0.019998]
[1694106180539,5.51738161,25839.0,25838.0,0.019998]
[1694106180786,5.7952184,25839.0,25838.0,0.019998]
[1694106181041,1.88895736,25839.0,25838.0,0.019998]
[1694106181321,1.06198401,25839.0,25838.0,0.02987567]
[1694106181558,1.83600701,25839.0,25838.0,0.02987567]
[1694106181790,2.61003001,25839.0,25838.0,0.02987567]
[1694106182034,2.79552085,25839.0,25838.0,0.02987567]